fUSD/lending_fUSD_20240428
["ID","MTS","AMOUNT","RATE_DAILY","PERIOD"]
[324804795,1714339883886,-500.0,0.0001178,2]
[324804796,1714339883896,-610.01,0.0001178,2]
[324804797,1714339883905,-500.0,0.0001178,2]
[324804798,1714339883915,-567.57,0.0001178,2]
[324804799,1714339883924,-500.0,0.0001178,2]
[324804800,1714339883934,-500.0,0.0001178,2]
[324804801,1714339883943,-500.0,0.0001178,2]
[324804802,1714339883953,-1451.39,0.0001178,2]
[324804803,1714339883962,-500.0,0.0001178,2]
[324804804,1714339883972,-500.0,0.0001178,2]
[324804805,1714339883982,-500.0,0.0001178,2]
[324804806,1714339883991,-1302.89,0.0001178,2]
[324804807,1714339884001,-500.0,0.0001178,2]
[324804808,1714339884010,-500.0,0.0001178,2]
[324804809,1714339884020,-500.0,0.0001178,2]
[324804810,1714339884029,-500.0,0.0001178,2]
[324804811,1714339884038,-545.45,0.0001178,2]
[324804812,1714339884047,-500.0,0.0001178,2]
[324804813,1714339884056,-500.0,0.0001178,2]
[324804814,1714339884066,-500.0,0.0001178,2]
[324804815,1714339884076,-500.0,0.0001178,2]
[324804816,1714339884085,-582.97,0.0001178,2]
[324804817,1714339884095,-500.0,0.0001178,2]
[324804818,1714339884105,-500.0,0.0001178,2]
[324804819,1714339884116,-500.0,0.0001178,2]
[324804820,1714339884125,-525.6,0.0001178,2]
[324804821,1714339884133,-500.0,0.0001178,2]
[324804822,1714339884141,-500.0,0.0001178,2]
[324804823,1714339884150,-500.0,0.0001178,2]
[324804824,1714339884159,-500.0,0.0001178,2]
[324804825,1714339884169,-500.0,0.0001178,2]
[324804826,1714339884178,-500.0,0.0001178,2]
[324804827,1714339884187,-585.48,0.0001178,2]
[324804828,1714339884196,-584.64,0.0001178,2]
[324804829,1714339884206,-857.33,0.0001178,2]
[324804830,1714339884215,-500.0,0.0001178,2]
[324804831,1714339884224,-704.02,0.0001178,2]
[324804832,1714339884234,-500.0,0.0001178,2]
[324804833,1714339884243,-1320.75,0.0001178,2]
[324804834,1714339884252,-500.0,0.0001178,2]
[324804835,1714339884261,-500.0,0.0001178,2]
[324804836,1714339884271,-500.0,0.0001178,2]
[324804837,1714339884280,-507.58,0.0001178,2]
[324804838,1714339884289,-500.0,0.0001178,2]
[324804839,1714339884298,-500.0,0.0001178,2]
[324804840,1714339884307,-500.0,0.0001178,2]
[324804841,1714339884316,-500.0,0.0001178,2]
[324804842,1714339884325,-730.12,0.0001178,2]
[324804843,1714339884334,-340.55468915,0.0001178,2]
[324804844,1714339884344,-500.0,0.0001178,2]
[324804845,1714339884353,-596.65,0.0001178,2]
[324804846,1714339884362,-2000.0,0.0001178,2]
[324804847,1714339884371,-500.0,0.0001178,2]
[324804848,1714339884380,-525.52044371,0.0001178,2]
[324804849,1714339884390,-369.9,0.0001178,2]
[324804850,1714339884398,-565.97,0.0001178,2]
[324804851,1714339884408,-500.0,0.0001178,2]
[324804852,1714339884417,-875.78,0.0001178,2]
[324804853,1714339884425,-500.0,0.0001178,2]
[324804854,1714339884435,-500.0,0.0001178,2]
[324804855,1714339884444,-500.0,0.0001178,2]
[324804856,1714339884453,-500.0,0.0001178,2]
[324804857,1714339884463,-526.69,0.0001178,2]
[324804858,1714339884472,-560.54,0.0001178,2]
[324804859,1714339884481,-736.07,0.0001178,2]
[324804860,1714339884490,-500.0,0.0001178,2]
[324804861,1714339884500,-500.0,0.0001178,2]
[324804862,1714339884509,-500.0,0.0001178,2]
[324804863,1714339884518,-414.93415619,0.0001178,2]
[324804864,1714339884527,-500.0,0.0001178,2]
[324804865,1714339884537,-500.0,0.0001178,2]
[324804866,1714339884547,-500.0,0.0001178,2]
[324804867,1714339884556,-604.78,0.0001178,2]
[324804868,1714339884566,-500.0,0.0001178,2]
[324804869,1714339884575,-500.0,0.0001178,2]
[324804870,1714339884587,-246.95,0.0001178,2]
[324804871,1714339884596,-500.0,0.0001178,2]
[324804872,1714339884605,-500.0,0.0001178,2]
[324804873,1714339884615,-500.0,0.0001178,2]
[324804874,1714339884625,-500.0,0.0001178,2]
[324804875,1714339884634,-545.77,0.0001178,2]
[324804876,1714339884643,-500.0,0.0001178,2]
[324804877,1714339884652,-523.54,0.0001178,2]
[324804878,1714339884662,-2956.01,0.0001178,2]
[324804879,1714339884671,-500.0,0.0001178,2]
[324804880,1714339884681,-565.94,0.0001178,2]
[324804881,1714339884869,-305.9,0.0001178,2]
[324804882,1714339884888,-500.0,0.0001178,2]
[324804883,1714339884897,-500.0,0.0001178,2]
[324804884,1714339884906,-500.0,0.0001178,2]
[324804885,1714339884916,-500.0,0.0001178,2]
[324804886,1714339884926,-500.0,0.0001178,2]
[324804887,1714339884935,-500.0,0.0001178,2]
[324804888,1714339884945,-500.0,0.0001178,2]
[324804889,1714339884955,-825.93,0.0001178,2]
[324804890,1714339884964,-345.02052426,0.0001178,2]
[324804891,1714339884973,-500.0,0.0001178,2]
[324804892,1714339884983,-602.04,0.0001178,2]
[324804893,1714339884992,-651.65,0.0001178,2]
[324804894,1714339885002,-1568.74,0.0001178,2]
[324804895,1714339885012,-520.26,0.0001178,2]
[324804896,1714339885022,-500.0,0.0001178,2]
[324804897,1714339885032,-500.0,0.0001178,2]
[324804898,1714339885042,-500.0,0.0001178,2]
[324804899,1714339885052,-500.0,0.0001178,2]
[324804900,1714339885062,-500.0,0.0001178,2]
[324804901,1714339885071,-500.0,0.0001178,2]
[324804902,1714339885081,-500.0,0.0001178,2]
[324804903,1714339885090,-1140.77,0.0001178,2]
[324804904,1714339885100,-500.0,0.0001178,2]
[324804905,1714339885109,-500.0,0.0001178,2]
[324804906,1714339885119,-549.86,0.0001178,2]
[324804907,1714339885128,-500.0,0.0001178,2]
[324804908,1714339885138,-500.0,0.0001178,2]
[324804909,1714339885147,-960.02,0.0001178,2]
[324804910,1714339885156,-500.0,0.0001178,2]
[324804911,1714339885167,-1723.08,0.0001178,2]
[324804912,1714339885177,-500.0,0.0001178,2]
[324804913,1714339885186,-500.0,0.0001178,2]
[324804914,1714339885195,-500.0,0.0001178,2]
[324804915,1714339885204,-500.0,0.0001178,2]
[324804916,1714339885213,-500.0,0.0001178,2]
[324804917,1714339885222,-500.0,0.0001178,2]
[324804918,1714339885231,-555.74,0.0001178,2]
[324804919,1714339885240,-500.0,0.0001178,2]
[324804920,1714339885249,-500.0,0.0001178,2]
[324804921,1714339885258,-1272.72,0.0001178,2]
[324804922,1714339885267,-500.0,0.0001178,2]
[324804923,1714339885276,-1044.49,0.0001178,2]
[324804924,1714339885285,-500.0,0.0001178,2]
[324804925,1714339885293,-854.35,0.0001178,2]
[324804926,1714339885302,-500.0,0.0001178,2]
[324804927,1714339885311,-500.0,0.0001178,2]
[324804928,1714339885320,-500.0,0.0001178,2]
[324804929,1714339885329,-500.0,0.0001178,2]
[324804930,1714339885338,-880.39,0.0001178,2]
[324804931,1714339885347,-500.0,0.0001178,2]
[324804932,1714339885357,-500.0,0.0001178,2]
[324804933,1714339885366,-1228.27,0.0001178,2]
[324804934,1714339885374,-500.0,0.0001178,2]
[324804935,1714339885383,-500.0,0.0001178,2]
[324804936,1714339885392,-500.0,0.0001178,2]
[324804937,1714339885401,-729.04,0.0001178,2]
[324804938,1714339885410,-500.0,0.0001178,2]
[324804939,1714339885420,-500.0,0.0001178,2]
[324804940,1714339885430,-500.0,0.0001178,2]
[324804941,1714339885440,-500.0,0.0001178,2]
[324804942,1714339885449,-530.05,0.0001178,2]
[324804943,1714339885458,-500.0,0.0001178,2]
[324804944,1714339885467,-3505.37,0.0001178,2]
[324804945,1714339885476,-462.88,0.0001178,2]
[324804946,1714339885485,-797.92,0.0001178,2]
[324804947,1714339885494,-529.45,0.0001178,2]
[324804948,1714339885503,-629.63,0.0001178,2]
[324804949,1714339885512,-500.0,0.0001178,2]
[324804950,1714339885521,-500.0,0.0001178,2]
[324804951,1714339885531,-1082.28,0.0001178,2]
[324804952,1714339885541,-500.0,0.0001178,2]
[324804953,1714339885550,-3192.23,0.0001178,2]
[324804954,1714339885559,-500.0,0.0001178,2]
[324804955,1714339885569,-500.0,0.0001178,2]
[324804956,1714339885578,-4836.83,0.0001178,2]
[324804957,1714339885588,-500.0,0.0001178,2]
[324804958,1714339885598,-1419.08,0.0001178,2]
[324804959,1714339885607,-500.0,0.0001178,2]
[324804960,1714339885617,-3170.41,0.0001178,2]
[324804961,1714339885626,-500.0,0.0001178,2]
[324804962,1714339885636,-500.0,0.0001178,2]
[324804963,1714339885646,-500.0,0.0001178,2]
[324804964,1714339885655,-500.0,0.0001178,2]
[324804965,1714339885666,-554.07,0.0001178,2]
[324804966,1714339885675,-1075.74,0.0001178,2]
[324804967,1714339885683,-3460.09,0.0001178,2]
[324804968,1714339885693,-1169.99,0.0001178,2]
[324804969,1714339885702,-812.15,0.0001178,2]
[324804970,1714339885711,-9425.46,0.0001178,2]
[324804971,1714339885719,-500.0,0.0001178,2]
[324804972,1714339885728,-1842.15,0.0001178,2]
[324804973,1714339885738,-500.0,0.0001178,2]
[324804974,1714339885748,-500.0,0.0001178,2]
[324804975,1714339885757,-1069.53,0.0001178,2]
[324804976,1714339885768,-500.0,0.0001178,2]
[324804977,1714339885779,-500.0,0.0001178,2]
[324804978,1714339885789,-500.0,0.0001178,2]
[324804979,1714339885799,-500.0,0.0001178,2]
[324804980,1714339885808,-500.0,0.0001178,2]
[324804981,1714339885819,-500.0,0.0001178,2]
[324804982,1714339885829,-14272.99,0.0001178,2]
[324804983,1714339885839,-500.0,0.0001178,2]
[324804984,1714339885850,-544.14,0.0001178,2]
[324804985,1714339885860,-7051.41,0.0001178,2]
[324804986,1714339885870,-500.0,0.0001178,2]
[324804987,1714339885879,-2707.78,0.0001178,2]
[324804988,1714339885888,-500.0,0.0001178,2]
[324804989,1714339885898,-1038.22,0.0001178,2]
[324804990,1714339885907,-500.0,0.0001178,2]
[324804991,1714339885918,-789.36,0.0001178,2]
[324804992,1714339885927,-2766.64,0.0001178,2]
[324804993,1714339885938,-500.0,0.0001178,2]
[324804994,1714339885949,-987.03,0.0001178,2]
[324804995,1714339885960,-196.02263843,0.0001178,2]
[324804996,1714339885969,-1211.54,0.0001178,2]
[324804997,1714339885979,-1666.13,0.0001178,2]
[324804998,1714339885989,-675.35,0.0001178,2]
[324804999,1714339885998,-500.0,0.0001178,2]
[324805000,1714339886008,-1349.22,0.0001178,2]
[324805001,1714339886017,-1516.18,0.0001178,2]
[324805002,1714339886027,-500.0,0.0001178,2]
[324805003,1714339886036,-500.0,0.0001178,2]
[324805004,1714339886046,-6591.59,0.0001178,2]
[324805005,1714339886056,-1899.29,0.0001178,2]
[324805006,1714339886065,-500.0,0.0001178,2]
[324805007,1714339886074,-783.36,0.0001178,2]
[324805008,1714339886083,-1988.95,0.0001178,2]
[324805009,1714339886094,-500.0,0.0001178,2]
[324805010,1714339886103,-1261.65,0.0001178,2]
[324805011,1714339886113,-2135.06,0.0001178,2]
[324805012,1714339886123,-500.0,0.0001178,2]
[324805013,1714339886133,-560.95,0.0001178,2]
[324805014,1714339886143,-562.7,0.0001178,2]
[324805015,1714339886152,-500.0,0.0001178,2]
[324805016,1714339886162,-6232.35,0.0001178,2]
[324805017,1714339886171,-500.0,0.0001178,2]
[324805018,1714339886180,-659.22,0.0001178,2]
[324805019,1714339886190,-1410.0,0.0001178,2]
[324805020,1714339886199,-500.0,0.0001178,2]
[324805021,1714339886208,-500.0,0.0001178,2]
[324805022,1714339886217,-1672.92,0.0001178,2]
[324805023,1714339886227,-1799.04,0.0001178,2]
[324805024,1714339886236,-500.0,0.0001178,2]
[324805025,1714339886245,-500.0,0.0001178,2]
[324805026,1714339886254,-895.24,0.0001178,2]
[324805027,1714339886264,-500.0,0.0001178,2]
[324805028,1714339886274,-1513.28,0.0001178,2]
[324805029,1714339886283,-500.0,0.0001178,2]
[324805030,1714339886293,-6800.76,0.0001178,2]
[324805031,1714339886302,-500.0,0.0001178,2]
[324805032,1714339886311,-500.0,0.0001178,2]
[324805033,1714339886321,-500.0,0.0001178,2]
[324805034,1714339886330,-753.18,0.0001178,2]
[324805035,1714339886339,-500.0,0.0001178,2]
[324805036,1714339886348,-500.0,0.0001178,2]
[324805037,1714339886358,-500.0,0.0001178,2]
[324805038,1714339886368,-1733.37,0.0001178,2]
[324805039,1714339886377,-545.78,0.0001178,2]
[324805040,1714339886387,-782.1,0.0001178,2]
[324805041,1714339886398,-1652.85,0.0001178,2]
[324805042,1714339886408,-500.0,0.0001178,2]
[324805043,1714339886420,-500.0,0.0001178,2]
[324805044,1714339886430,-1590.77,0.0001178,2]
[324805045,1714339886441,-12133.37,0.0001178,2]
[324805046,1714339886451,-2025.62,0.0001178,2]
[324805047,1714339886460,-1421.85,0.0001178,2]
[324805048,1714339886471,-1135.8,0.0001178,2]
[324805049,1714339886481,-500.0,0.0001178,2]
[324805050,1714339886493,-4575.67,0.0001178,2]
[324805051,1714339886503,-500.0,0.0001178,2]
[324805052,1714339886512,-1396.35,0.0001178,2]
[324805053,1714339886522,-6107.04,0.0001178,2]
[324805054,1714339886534,-500.0,0.0001178,2]
[324805055,1714339886543,-998.38,0.0001178,2]
[324805056,1714339886553,-2527.69,0.0001178,2]
[324805057,1714339886562,-573.44,0.0001178,2]
[324805058,1714339886572,-249.37951507,0.0001178,2]
[324805059,1714339886581,-2789.13,0.0001178,2]
[324805060,1714339886591,-1761.96,0.0001178,2]
[324805061,1714339886600,-500.0,0.0001178,2]
[324805062,1714339886609,-1062.84,0.0001178,2]
[324805063,1714339886620,-500.0,0.0001178,2]
[324805064,1714339886630,-1977.9,0.0001178,2]
[324805065,1714339886639,-2491.39,0.0001178,2]
[324805066,1714339886650,-500.0,0.0001178,2]
[324805067,1714339886660,-500.0,0.0001178,2]
[324805068,1714339886669,-1098.32,0.0001178,2]
[324805069,1714339886679,-3361.84,0.0001178,2]
[324805070,1714339886690,-500.0,0.0001178,2]
[324805071,1714339886701,-500.0,0.0001178,2]
[324805072,1714339886712,-500.0,0.0001178,2]
[324805073,1714339886723,-1081.51,0.0001178,2]
[324805074,1714339886733,-2735.15,0.0001178,2]
[324805075,1714339886744,-500.0,0.0001178,2]
[324805076,1714339886755,-500.0,0.0001178,2]
[324805077,1714339886765,-1862.58,0.0001178,2]
[324805078,1714339886779,-4338.42,0.0001178,2]
[324805079,1714339886788,-1752.48,0.0001178,2]
[324805080,1714339886798,-500.0,0.0001178,2]
[324805081,1714339886808,-500.0,0.0001178,2]
[324805082,1714339886818,-2116.48,0.0001178,2]
[324805083,1714339886827,-844.65,0.0001178,2]
[324805084,1714339886836,-500.0,0.0001178,2]
[324805085,1714339886847,-500.0,0.0001178,2]
[324805086,1714339886858,-1415.56,0.0001178,2]
[324805087,1714339886868,-1696.77,0.0001178,2]
[324805088,1714339886877,-552.51,0.0001178,2]
[324805089,1714339886886,-500.0,0.0001178,2]
[324805090,1714339886896,-500.0,0.0001178,2]
[324805091,1714339886905,-7394.13,0.0001178,2]
[324805092,1714339886915,-500.0,0.0001178,2]
[324805093,1714339886924,-500.0,0.0001178,2]
[324805094,1714339886933,-500.0,0.0001178,2]
[324805095,1714339886942,-2704.4,0.0001178,2]
[324805096,1714339886952,-500.0,0.0001178,2]
[324805097,1714339886961,-547.48,0.0001178,2]
[324805098,1714339886971,-500.0,0.0001178,2]
[324805099,1714339886981,-500.0,0.0001178,2]
[324805100,1714339886991,-869.1,0.0001178,2]
[324805101,1714339887001,-500.0,0.0001178,2]
[324805102,1714339887010,-3366.67,0.0001178,2]
[324805103,1714339887020,-709.72,0.0001178,2]
[324805104,1714339887029,-849.0,0.0001178,2]
[324805105,1714339887039,-4609.23,0.0001178,2]
[324805106,1714339887049,-1257.26,0.0001178,2]
[324805107,1714339887058,-500.0,0.0001178,2]
[324805108,1714339887068,-500.0,0.0001178,2]
[324805109,1714339887077,-972.25,0.0001178,2]
[324805110,1714339887088,-500.0,0.0001178,2]
[324805111,1714339887098,-1051.8,0.0001178,2]
[324805112,1714339887107,-1129.36,0.0001178,2]
[324805113,1714339887117,-500.0,0.0001178,2]
[324805114,1714339887126,-500.0,0.0001178,2]
[324805115,1714339887136,-1721.28,0.0001178,2]
[324805116,1714339887145,-1025.92,0.0001178,2]
[324805117,1714339887155,-505.66,0.0001178,2]
[324805118,1714339887165,-500.0,0.0001178,2]
[324805119,1714339887174,-500.0,0.0001178,2]
[324805120,1714339887184,-3106.8,0.0001178,2]
[324805121,1714339887194,-784.13,0.0001178,2]
[324805122,1714339887203,-500.0,0.0001178,2]
[324805123,1714339887213,-1332.25,0.0001178,2]
[324805124,1714339887223,-1770.89,0.0001178,2]
[324805125,1714339887233,-500.0,0.0001178,2]
[324805126,1714339887293,-3285.67,0.0001178,2]
[324805127,1714339887305,-500.0,0.0001178,2]
[324805128,1714339887315,-1973.0,0.0001178,2]
[324805129,1714339887326,-500.0,0.0001178,2]
[324805130,1714339887337,-500.0,0.0001178,2]
[324805131,1714339887348,-581.39,0.0001178,2]
[324805132,1714339887358,-500.0,0.0001178,2]
[324805133,1714339887368,-5056.57,0.0001178,2]
[324805134,1714339887379,-500.0,0.0001178,2]
[324805135,1714339887388,-500.0,0.0001178,2]
[324805136,1714339887398,-528.94,0.0001178,2]
[324805137,1714339887407,-1960.25,0.0001178,2]
[324805138,1714339887416,-500.0,0.0001178,2]
[324805139,1714339887426,-500.0,0.0001178,2]
[324805140,1714339887435,-854.46,0.0001178,2]
[324805141,1714339887445,-500.0,0.0001178,2]
[324805142,1714339887455,-505.33,0.0001178,2]
[324805143,1714339887465,-500.0,0.0001178,2]
[324805144,1714339887476,-1460.22,0.0001178,2]
[324805145,1714339887484,-500.0,0.0001178,2]
[324805146,1714339887493,-239.2186212,0.0001178,2]
[324805147,1714339887503,-500.0,0.0001178,2]
[324805148,1714339887512,-4144.13,0.0001178,2]
[324805149,1714339887520,-500.0,0.0001178,2]
[324805150,1714339887529,-2730.97,0.0001178,2]
[324805151,1714339887539,-2002.94,0.0001178,2]
[324805152,1714339887548,-1318.77,0.0001178,2]
[324805153,1714339887557,-532.10140465,0.0001178,2]
[324805154,1714339887566,-500.0,0.0001178,2]
[324805155,1714339887575,-501.42867605,0.0001178,2]
[324805156,1714339887585,-500.0,0.0001178,2]
[324805157,1714339887594,-1001.05,0.0001178,2]
[324805158,1714339887603,-500.0,0.0001178,2]
[324805159,1714339887612,-500.0,0.0001178,2]
[324805160,1714339887621,-500.0,0.0001178,2]
[324805161,1714339887630,-9331.99,0.0001178,2]
[324805162,1714339887639,-4277.49,0.0001178,2]
[324805163,1714339887649,-517.5,0.0001178,2]
[324805164,1714339887658,-500.0,0.0001178,2]
[324805165,1714339887668,-5193.46,0.0001178,2]
[324805166,1714339887677,-775.85,0.0001178,2]
[324805167,1714339887686,-743.46,0.0001178,2]
[324805168,1714339887695,-500.0,0.0001178,2]
[324805169,1714339887704,-500.0,0.0001178,2]
[324805170,1714339887714,-9387.0,0.00011781,2]
[324805171,1714339887723,-3252.39319555,0.00011786,2]
[324805172,1714339887732,-160.64,0.00011815,2]
[324805173,1714339887741,-3252.39319555,0.00011972,2]
[324805174,1714339887750,-5000.0,0.00012,2]
[324805175,1714339887758,-4003.18671257,0.00012,2]
[324805176,1714339887768,-1465.83,0.00012009,2]
[324805177,1714339887781,-585.26366027,0.00012016,2]
[324805178,1714339887790,-1249.83,0.00012053,2]
[324805179,1714339887799,-1249.83,0.00012053,2]
[324805180,1714339887808,-418.434368,0.00012054,2]
[324805181,1714339887818,-418.434368,0.00012054,2]
[324805182,1714339887828,-418.434368,0.00012054,2]
[324805183,1714339887837,-418.434362,0.00012054,2]
[324805184,1714339887846,-500.0,0.00012054,2]
[324805185,1714339887857,-325.63334046,0.00012054,2]
[324805186,1714339887867,-500.0,0.00012054,2]
[324805187,1714339887876,-500.0,0.00012054,2]
[324805188,1714339887885,-500.0,0.00012054,2]
[324805189,1714339887894,-500.0,0.00012054,2]
[324805190,1714339887903,-500.0,0.00012054,2]
[324805191,1714339887912,-500.0,0.00012054,2]
[324805192,1714339887921,-500.0,0.00012054,2]
[324805193,1714339887931,-500.0,0.00012054,2]
[324805194,1714339887940,-500.0,0.00012054,2]
[324805195,1714339887949,-500.0,0.00012054,2]
[324805196,1714339887959,-500.0,0.00012054,2]
[324805197,1714339887968,-500.0,0.00012054,2]
[324805198,1714339887977,-500.0,0.00012054,2]
[324805199,1714339887986,-500.0,0.00012054,2]
[324805200,1714339887995,-500.0,0.00012054,2]
[324805201,1714339888004,-500.0,0.00012054,2]
[324805202,1714339888013,-500.0,0.00012054,2]
[324805203,1714339888022,-506.83,0.00012054,2]
[324805204,1714339888031,-500.0,0.00012054,2]
[324805205,1714339888040,-500.0,0.00012054,2]
[324805206,1714339888050,-500.0,0.00012054,2]
[324805207,1714339888059,-500.0,0.00012054,2]
[324805208,1714339888068,-500.0,0.00012054,2]
[324805209,1714339888077,-500.0,0.00012054,2]
[324805210,1714339888086,-500.0,0.00012054,2]
[324805211,1714339888106,-500.0,0.00012054,2]
[324805212,1714339888116,-500.0,0.00012054,2]
[324805213,1714339888126,-500.0,0.00012054,2]
[324805214,1714339888136,-209.45020467,0.00012054,2]
[324805215,1714339888145,-500.0,0.00012054,2]
[324805216,1714339888155,-500.0,0.00012054,2]
[324805217,1714339888166,-294.34165354,0.00012054,2]
[324805218,1714339888175,-500.0,0.00012054,2]
[324805219,1714339888184,-500.0,0.00012054,2]
[324805220,1714339888194,-500.0,0.00012054,2]
[324805221,1714339888203,-500.0,0.00012054,2]
[324805222,1714339888212,-500.0,0.00012054,2]
[324805223,1714339888222,-500.0,0.00012054,2]
[324805224,1714339888231,-500.0,0.00012054,2]
[324805225,1714339888240,-500.0,0.00012054,2]
[324805226,1714339888250,-500.0,0.00012054,2]
[324805227,1714339888259,-167.41417661,0.00012054,2]
[324805228,1714339888269,-500.0,0.00012054,2]
[324805229,1714339888278,-500.0,0.00012054,2]
[324805230,1714339888287,-500.0,0.00012054,2]
[324805231,1714339888296,-500.0,0.00012054,2]
[324805232,1714339888306,-500.0,0.00012054,2]
[324805233,1714339888315,-586.34,0.00012054,2]
[324805234,1714339888324,-500.0,0.00012054,2]
[324805235,1714339888335,-517.57,0.00012054,2]
[324805236,1714339888345,-625.38,0.00012054,2]
[324805237,1714339888356,-508.80924571,0.00012054,2]
[324805238,1714339888365,-500.0,0.00012054,2]
[324805239,1714339888377,-733.89,0.00012054,2]
[324805240,1714339888386,-674.04,0.00012054,2]
[324805241,1714339888395,-500.0,0.00012054,2]
[324805242,1714339888406,-500.0,0.00012054,2]
[324805243,1714339888416,-500.0,0.00012054,2]
[324805244,1714339888426,-500.0,0.00012054,2]
[324805245,1714339888436,-500.0,0.00012054,2]
[324805246,1714339888447,-500.0,0.00012054,2]
[324805247,1714339888457,-500.0,0.00012054,2]
[324805248,1714339888467,-500.0,0.00012054,2]
[324805249,1714339888476,-500.0,0.00012054,2]
[324805250,1714339888486,-500.0,0.00012054,2]
[324805251,1714339888496,-500.0,0.00012054,2]
[324805252,1714339888508,-552.07,0.00012054,2]
[324805253,1714339888521,-500.0,0.00012054,2]
[324805254,1714339888532,-588.66,0.00012054,2]
[324805255,1714339888542,-500.0,0.00012054,2]
[324805256,1714339888552,-798.42,0.00012054,2]
[324805257,1714339888562,-500.0,0.00012054,2]
[324805258,1714339888572,-500.0,0.00012054,2]
[324805259,1714339888582,-928.66,0.00012054,2]
[324805260,1714339888592,-500.0,0.00012054,2]
[324805261,1714339888602,-505.51,0.00012054,2]
[324805262,1714339888612,-500.0,0.00012054,2]
[324805263,1714339888622,-903.89,0.00012054,2]
[324805264,1714339888633,-737.63,0.00012054,2]
[324805265,1714339888643,-500.0,0.00012054,2]
[324805266,1714339888654,-500.0,0.00012054,2]
[324805267,1714339888664,-500.0,0.00012054,2]
[324805268,1714339888673,-500.0,0.00012054,2]
[324805269,1714339888683,-718.49,0.00012054,2]
[324805270,1714339888694,-864.97,0.00012054,2]
[324805271,1714339888704,-500.0,0.00012054,2]
[324805272,1714339888716,-504.53,0.00012054,2]
[324805273,1714339888727,-500.0,0.00012054,2]
[324805274,1714339888739,-500.0,0.00012054,2]
[324805275,1714339888749,-500.0,0.00012054,2]
[324805276,1714339888758,-500.0,0.00012054,2]
[324805277,1714339888768,-594.05,0.00012054,2]
[324805278,1714339888782,-500.0,0.00012054,2]
[324805279,1714339888791,-500.0,0.00012054,2]
[324805280,1714339888801,-500.0,0.00012054,2]
[324805281,1714339888811,-870.38,0.00012054,2]
[324805282,1714339888822,-500.0,0.00012054,2]
[324805283,1714339888831,-500.0,0.00012054,2]
[324805284,1714339888840,-501.18,0.00012054,2]
[324805285,1714339888851,-500.0,0.00012054,2]
[324805286,1714339888861,-500.0,0.00012054,2]
[324805287,1714339888870,-554.82232512,0.00012054,2]
[324805288,1714339888880,-500.0,0.00012054,2]
[324805289,1714339888889,-500.0,0.00012054,2]
[324805290,1714339888898,-500.0,0.00012054,2]
[324805291,1714339888907,-500.0,0.00012054,2]
[324805292,1714339888917,-500.0,0.00012054,2]
[324805293,1714339888926,-500.0,0.00012054,2]
[324805294,1714339888936,-500.0,0.00012054,2]